bitfinex/quotes_BTCUSD_20250408
["timestamp","ask_amount","ask_price","bid_price","bid_amount"]
[1744073712847,0.012599,79369.0,79364.0,0.0126]
[1744073712989,0.012599,79371.0,79366.0,0.264594]
[1744073713196,0.15124,79373.0,79369.0,0.264583]
[1744073713831,0.403215,79373.0,79368.0,0.25199]
[1744073714231,0.15124,79373.0,79368.0,0.25199]
[1744073714454,0.251987,79369.0,79362.0,0.264607]
[1744073714631,0.012599,79368.0,79361.0,0.26461]
[1744073714831,0.012599,79369.0,79365.0,0.252]
[1744073715055,0.012599,79370.0,79365.0,0.2646]
[1744073715628,0.254983,79371.0,79366.0,0.012599]
[1744073715835,0.001,79368.0,79366.0,0.264593]
[1744073716237,0.251983,79371.0,79366.0,0.264593]
[1744073716435,0.004,79370.0,79366.0,0.264592]
[1744073716772,0.004,79370.0,79361.0,0.0126]
[1744073716773,0.0126,79359.0,79353.0,0.012601]
[1744073716996,0.15116,79358.0,79356.0,0.012601]
[1744073717585,0.252039,79353.0,79346.0,0.058703]
[1744073717763,0.403185,79358.0,79354.0,0.252035]
[1744073718277,0.403185,79358.0,79353.0,0.012601]
[1744073718680,0.403185,79358.0,79356.0,0.004]
[1744073718907,0.403185,79358.0,79353.0,0.015601]
[1744073719119,0.403185,79358.0,79353.0,0.003]
[1744073719311,0.40976878,79358.0,79354.0,0.004]
[1744073719457,0.415786,79358.0,79354.0,0.004]
[1744073719691,0.15116,79358.0,79354.0,0.004]
[1744073719871,0.15116,79358.0,79357.0,0.264626]
[1744073720375,0.99876,79375.0,79374.0,0.264569]
[1744073720583,1.14992,79375.0,79374.0,0.264569]
[1744073721286,0.15116,79375.0,79374.0,0.264569]
[1744073721510,0.15116,79375.0,79374.0,0.310669]
[1744073721707,0.15316,79375.0,79374.0,0.310669]
[1744073722465,0.15116,79375.0,79374.0,0.310669]
[1744073722661,0.002,79379.0,79375.0,0.012598]
[1744073722911,0.002,79379.0,79378.0,0.264555]
[1744073723249,0.002,79379.0,79378.0,0.3939437]
[1744073725445,0.0001681,79385.0,79378.0,0.3939437]
[1744073725446,0.0001681,79385.0,79384.0,0.264535]
[1744073725651,0.0001681,79385.0,79384.0,0.4399237]
[1744073726614,0.0001681,79385.0,79384.0,0.4449237]
[1744073727430,0.0001681,79385.0,79384.0,0.4509237]
[1744073727886,0.0001681,79385.0,79384.0,0.4459237]
[1744073728113,0.01986776,79385.0,79384.0,0.4459237]
[1744073728243,0.01986776,79385.0,79384.0,0.4519237]
[1744073728799,0.0001681,79385.0,79384.0,0.4519237]
[1744073729001,0.0001681,79385.0,79384.0,0.4059237]
[1744073729178,0.0001681,79385.0,79384.0,0.1413887]
[1744073729380,0.264606,79363.0,79348.0,0.0481]
[1744073729589,0.264636,79354.0,79345.0,0.012603]
[1744073729803,0.252022,79358.0,79348.0,0.012602]
[1744073730014,0.264592,79368.0,79358.0,0.012601]
[1744073730218,0.252009,79362.0,79355.0,0.012601]
[1744073730382,0.012599,79366.0,79355.0,0.012601]
[1744073730383,0.012599,79366.0,79356.0,0.264629]
[1744073730584,0.252003,79364.0,79356.0,0.012601]
[1744073731485,0.251987,79369.0,79361.0,0.25201]
[1744073731684,1.05218993,79385.0,79377.0,0.012598]
[1744073731884,0.403021,79384.0,79372.0,0.012598]
[1744073732138,0.264552,79379.0,79369.0,0.012599]
[1744073732374,0.251966,79376.0,79369.0,0.012599]
[1744073732923,0.251973,79374.0,79369.0,0.012599]
[1744073733323,0.9988081,79385.0,79382.0,0.251945]
[1744073733510,0.9988081,79385.0,79383.0,0.012597]
[1744073733912,0.0001681,79385.0,79384.0,0.264535]
[1744073734152,1e-07,79385.0,79384.0,0.8543237]
[1744073734354,1e-07,79385.0,79384.0,0.9024237]
[1744073734766,1e-07,79385.0,79384.0,0.5563847]
[1744073735163,1e-07,79385.0,79382.0,0.001]
[1744073735363,0.251939,79384.0,79382.0,0.001]
[1744073735719,0.0125961,79385.0,79384.0,0.008]
[1744073735890,0.352597,79383.0,79382.0,0.001]
[1744073736096,0.352597,79383.0,79362.0,0.252007]
[1744073736097,0.012598,79373.0,79365.0,0.0126]
[1744073736251,0.15108,79372.0,79367.0,0.012599]
[1744073736623,0.012599,79369.0,79363.0,0.0126]
[1744073736733,0.0126,79365.0,79356.0,0.264629]
[1744073736943,0.252004,79364.0,79356.0,0.264629]
[1744073737135,0.252019,79359.0,79355.0,0.4144]
[1744073737377,0.163681,79358.0,79352.0,0.264642]
[1744073737711,0.15108,79358.0,79353.0,0.012601]
[1744073738258,0.15108,79358.0,79352.0,0.264642]
[1744073738259,0.012602,79352.0,79344.0,0.252065]
[1744073738382,0.26464,79353.0,79348.0,0.264655]
[1744073738854,0.012601,79353.0,79348.0,0.264655]
[1744073739034,0.264626,79357.0,79353.0,0.005]
[1744073739406,0.264626,79357.0,79355.0,0.004]
[1744073739610,0.15108,79358.0,79355.0,0.004]
[1744073740070,0.15108,79358.0,79353.0,0.005]
[1744073740216,0.15108,79358.0,79354.0,0.012601]
[1744073740415,0.15108,79358.0,79354.0,0.264636]
[1744073740616,0.15108,79358.0,79355.0,0.012601]
[1744073740816,0.15108,79358.0,79357.0,0.012601]
[1744073741222,0.15108,79358.0,79356.0,0.252028]
[1744073742347,0.15108,79358.0,79357.0,0.012601]
[1744073742559,0.15108,79358.0,79356.0,0.269629]
[1744073743071,0.15108,79358.0,79357.0,0.012601]
[1744073743789,0.15108,79358.0,79357.0,0.021601]
[1744073745213,0.2052494,79358.0,79357.0,0.009]
[1744073745621,0.5452494,79358.0,79357.0,0.009]
[1744073746330,0.264652,79350.0,79341.0,0.012603]
[1744073746527,0.264652,79350.0,79332.0,0.4144]
[1744073746528,0.34,79357.0,79353.0,0.012601]
[1744073746727,0.34,79357.0,79355.0,0.012601]
[1744073746928,0.34,79357.0,79356.0,0.264629]
[1744073747068,0.34,79357.0,79356.0,0.012601]
[1744073747472,0.34,79357.0,79356.0,0.264627]
[1744073748109,0.15108,79358.0,79357.0,0.012601]
[1744073748302,0.34,79365.0,79364.0,0.0126]
[1744073748507,0.49108,79365.0,79361.0,0.0126]
[1744073748734,0.49108,79365.0,79361.0,0.264604]
[1744073749060,0.50368,79365.0,79360.0,0.0126]
[1744073749390,0.264603,79364.0,79359.0,0.252019]
[1744073749692,0.264603,79364.0,79358.0,0.012601]
[1744073749931,0.49608,79365.0,79360.0,0.0126]
[1744073750111,0.16308,79365.0,79364.0,0.0126]
[1744073750324,0.15808,79365.0,79364.0,0.0126]
[1744073750503,0.15108,79365.0,79364.0,0.0126]
[1744073751555,0.15108,79365.0,79362.0,0.264609]
[1744073751730,0.15108,79365.0,79364.0,0.264603]
[1744073751936,0.15108,79365.0,79362.0,0.264609]
[1744073752186,0.15608,79365.0,79363.0,0.264603]
[1744073752400,0.15608,79365.0,79363.0,0.0126]
[1744073752607,0.15808,79365.0,79364.0,0.001]
[1744073752832,0.15908,79365.0,79364.0,0.001]
[1744073753155,0.15208,79365.0,79361.0,0.264612]
[1744073753356,0.15308,79365.0,79363.0,0.252006]
[1744073753625,0.15308,79365.0,79364.0,0.0126]
[1744073753822,0.15108,79365.0,79362.0,0.0126]
[1744073754053,0.15308,79365.0,79362.0,0.0126]
[1744073754528,0.15308,79365.0,79361.0,0.264612]
[1744073755129,0.0126,79363.0,79354.0,0.252034]
[1744073755362,0.0126,79361.0,79356.0,0.252028]
[1744073755542,0.0126,79361.0,79356.0,0.264629]
[1744073755723,0.15408,79365.0,79358.0,0.012601]
[1744073755926,0.15308,79365.0,79362.0,0.0126]
[1744073756125,0.15208,79365.0,79359.0,0.264616]
[1744073756463,0.001,79363.0,79359.0,0.264616]
[1744073756749,0.15108,79365.0,79363.0,0.264604]
[1744073756925,0.15108,79365.0,79364.0,0.0126]
[1744073757246,0.02094181,79371.0,79366.0,0.012599]
[1744073757511,0.251965,79376.0,79369.0,0.264586]
[1744073757512,0.15112,79370.0,79369.0,0.264586]
[1744073759408,0.15212,79370.0,79369.0,0.264586]
[1744073760971,0.001,79370.0,79369.0,0.3939747]
[1744073761203,0.001,79370.0,79369.0,0.4429747]
[1744073761403,0.15112,79378.0,79369.0,0.4429747]
[1744073761404,0.15112,79378.0,79377.0,0.26456]
[1744073761605,0.000168,79390.0,79384.0,0.264535]
[1744073761850,0.1510801,79385.0,79384.0,0.264535]
[1744073762142,0.1510801,79385.0,79384.0,0.3939237]
[1744073763680,1e-07,79385.0,79384.0,0.3939237]
[1744073764385,1e-07,79385.0,79384.0,0.8573237]
[1744073766323,1e-07,79385.0,79384.0,0.4144]
[1744073766523,0.012597,79380.0,79374.0,0.061598]
[1744073766723,0.15104,79379.0,79377.0,0.251962]
[1744073767067,0.15104,79379.0,79378.0,0.012597]
[1744073769183,0.15104,79379.0,79378.0,0.1419857]
[1744073769830,0.15104,79379.0,79378.0,0.1873857]
[1744073770030,1e-07,79385.0,79384.0,0.264535]
[1744073770217,1e-07,79385.0,79384.0,0.3939237]
[1744073770868,1e-07,79385.0,79384.0,0.8083237]
[1744073771653,1e-07,79385.0,79384.0,0.5437887]
[1744073771852,0.2519361,79385.0,79384.0,0.4144]
[1744073772052,0.264535,79384.0,79378.0,0.251958]
[1744073772224,1e-07,79385.0,79383.0,0.012597]
[1744073772599,0.264535,79384.0,79377.0,0.264558]
[1744073772977,1e-07,79385.0,79380.0,0.251952]
[1744073773177,0.264544,79382.0,79377.0,0.012598]
[1744073773377,0.06825886,79372.0,79359.0,0.0126]
[1744073773679,0.06825886,79372.0,79361.0,0.0126]
[1744073773680,0.251987,79369.0,79361.0,0.0126]
[1744073773997,0.15104,79371.0,79368.0,0.012599]
[1744073774446,0.15104,79371.0,79368.0,0.264589]
[1744073774644,0.15104,79371.0,79370.0,0.264583]
[1744073775295,0.26452,79389.0,79382.0,0.264542]
[1744073775472,0.15104,79388.0,79386.0,0.012596]
[1744073775674,0.15104,79388.0,79385.0,0.26453]
[1744073775917,0.15104,79388.0,79382.0,0.264541]
[1744073776110,0.15104,79388.0,79386.0,0.012596]
[1744073776409,0.15104,79388.0,79387.0,0.012596]
[1744073777137,0.000168,79390.0,79389.0,0.012596]
[1744073777270,0.151208,79390.0,79389.0,0.26452]
[1744073777476,0.151208,79390.0,79385.0,0.264531]
[1744073777477,0.151208,79390.0,79385.0,0.264529]
[1744073777955,0.151208,79390.0,79386.0,0.264526]
[1744073778130,0.151208,79390.0,79389.0,0.012596]
[1744073778554,0.151208,79390.0,79388.0,0.251927]
[1744073779297,0.264535,79385.0,79378.0,0.012597]
[1744073779539,0.012597,79383.0,79376.0,0.012598]
[1744073779695,0.012596,79387.0,79381.0,0.012597]
[1744073780276,0.251927,79388.0,79382.0,0.012597]
[1744073780564,0.264535,79385.0,79376.0,0.26456]
[1744073780763,0.264535,79385.0,79379.0,0.012597]
[1744073780967,0.25193,79387.0,79382.0,0.012597]
[1744073781307,0.264526,79387.0,79381.0,0.264544]
[1744073781734,0.012597,79382.0,79375.0,0.4144]
[1744073781933,0.264552,79379.0,79375.0,0.4144]
[1744073782164,0.264563,79376.0,79375.0,0.4144]
[1744073782367,0.415603,79376.0,79375.0,0.4144]
[1744073782682,0.15104,79376.0,79375.0,0.426998]
[1744073783106,0.15104,79376.0,79375.0,0.012598]
[1744073786286,0.251919,79391.0,79384.0,0.012596]
[1744073786530,0.163636,79389.0,79384.0,0.012596]
[1744073786704,0.163636,79389.0,79374.0,0.264566]
[1744073786705,0.012596,79385.0,79374.0,0.264566]
[1744073786870,0.012597,79380.0,79374.0,0.264566]
[1744073787071,0.012598,79374.0,79373.0,0.00955306]
[1744073787274,0.15104,79374.0,79373.0,0.264572]
[1744073788635,0.15104,79374.0,79370.0,0.26458]
[1744073788837,0.251974,79373.0,79369.0,0.251985]
[1744073789044,0.252007,79363.0,79355.0,0.012601]
[1744073789184,0.0126,79364.0,79356.0,0.012601]
[1744073789391,0.251994,79367.0,79359.0,0.0126]
[1744073789703,0.251994,79367.0,79362.0,0.264609]
[1744073789941,0.012599,79368.0,79362.0,0.264609]
[1744073790089,0.012599,79368.0,79363.0,0.264603]
[1744073790293,0.251993,79367.0,79363.0,0.264603]
[1744073790534,0.251987,79369.0,79364.0,0.0126]
[1744073790945,0.264586,79369.0,79364.0,0.0126]
[1744073791536,0.251981,79371.0,79366.0,0.264596]
[1744073791744,0.012598,79376.0,79369.0,0.012599]
[1744073791963,0.58664354,79380.0,79373.0,0.012598]
[1744073792120,0.264556,79378.0,79371.0,0.012599]
[1744073792320,0.264565,79376.0,79371.0,0.012599]
[1744073792552,0.251951,79381.0,79373.0,0.012598]
[1744073792783,0.264548,79381.0,79373.0,0.012598]
[1744073793400,0.264548,79381.0,79371.0,0.264577]
[1744073793401,0.264563,79377.0,79371.0,0.264577]
[1744073793974,0.251943,79383.0,79371.0,0.264577]
[1744073793975,0.264529,79386.0,79380.0,0.251951]
[1744073794155,0.491,79385.0,79380.0,0.251951]
[1744073794354,0.264535,79384.0,79379.0,0.012597]
[1744073795845,0.491,79385.0,79379.0,0.012597]
[1744073796168,0.264535,79384.0,79379.0,0.012597]
[1744073796900,0.264542,79383.0,79377.0,0.012598]
[1744073797440,0.264545,79382.0,79374.0,0.251971]
[1744073797756,0.012597,79383.0,79376.0,0.012598]
[1744073797929,0.251952,79381.0,79374.0,0.012598]
[1744073798068,0.012597,79382.0,79374.0,0.012598]
[1744073798069,0.012597,79382.0,79376.0,0.012598]
[1744073798270,0.012597,79382.0,79376.0,0.264562]
[1744073798476,0.491,79385.0,79381.0,0.012597]
[1744073798695,0.012595,79391.0,79384.0,0.264535]
[1744073798914,0.012595,79391.0,79382.0,0.251946]
[1744073798915,0.34,79387.0,79382.0,0.012597]
[1744073799171,0.151,79386.0,79385.0,0.264529]
[1744073799592,0.151,79386.0,79382.0,0.264542]
[1744073799783,0.251948,79382.0,79377.0,0.264557]
[1744073799961,0.012597,79380.0,79374.0,0.012598]
[1744073800109,0.264572,79373.0,79368.0,0.264588]
[1744073800310,0.012599,79370.0,79365.0,0.251998]
[1744073800524,0.012599,79368.0,79357.0,0.012601]
[1744073800727,0.012599,79368.0,79358.0,0.012601]
[1744073802646,0.012599,79368.0,79353.0,0.012601]
[1744073802647,0.264669,79345.0,79343.0,0.0003362]
[1744073802868,0.163603,79344.0,79343.0,0.0003362]
[1744073803071,0.151,79344.0,79329.0,0.0003358]
[1744073803278,0.26471,79332.0,79329.0,0.0003358]
[1744073803676,0.5440987,79332.0,79329.0,0.0003358]
[1744073804622,0.15,79332.0,79329.0,0.0003358]
[1744073804985,0.012605,79333.0,79329.0,0.0003358]
[1744073805185,0.264708,79333.0,79329.0,0.0003358]
[1744073805941,0.15,79342.0,79329.0,0.0003358]
[1744073805942,0.15,79342.0,79335.0,0.012604]
[1744073806237,1.011364,79339.0,79331.0,0.26671]
[1744073806391,0.26469,79338.0,79331.0,0.26671]
[1744073806596,0.252093,79336.0,79331.0,0.002]
[1744073807021,0.264697,79336.0,79331.0,0.002]
[1744073807463,0.252098,79334.0,79331.0,0.002]
[1744073807904,0.012604,79334.0,79331.0,0.002]
[1744073808196,0.012604,79338.0,79331.0,0.002]
[1744073808343,0.99876,79339.0,79334.0,0.264702]
[1744073808940,0.26469,79338.0,79331.0,0.002]
[1744073809144,0.99876,79339.0,79332.0,0.012605]
[1744073809384,0.012604,79338.0,79331.0,0.002]
[1744073809585,0.012604,79337.0,79331.0,0.002]
[1744073809758,0.264696,79336.0,79331.0,0.002]
[1744073810402,0.264709,79333.0,79331.0,0.002]
[1744073810611,0.012605,79332.0,79331.0,0.002]
[1744073810811,0.15653455,79332.0,79331.0,0.002]
[1744073811012,0.49653455,79332.0,79331.0,0.002]
[1744073811315,0.59653455,79332.0,79331.0,0.002]
[1744073811635,0.72594,79332.0,79331.0,0.002]
[1744073811928,1.17258152,79332.0,79331.0,0.002]
[1744073812338,1.21546275,79332.0,79331.0,0.002]
[1744073813229,0.61927085,79326.0,79324.0,0.0003358]
[1744073813439,1.47578652,79326.0,79324.0,0.0003358]
[1744073813733,1.49915735,79326.0,79324.0,0.0003358]
[1744073814542,1.46431583,79326.0,79324.0,0.0003358]
[1744073814878,1.12373849,79326.0,79324.0,0.0003358]
[1744073815040,1.13634449,79326.0,79324.0,0.0003358]
[1744073815554,1.38846849,79326.0,79324.0,0.0003358]
[1744073815720,1.42331001,79326.0,79324.0,0.0003358]
[1744073816132,0.04714685,79325.0,79324.0,6e-07]
[1744073816350,0.35431308,79325.0,79324.0,6e-07]
[1744073816685,0.37768391,79325.0,79324.0,6e-07]
[1744073816861,0.79882543,79325.0,79324.0,6e-07]
[1744073817068,0.4148,79305.0,79301.0,0.002]
[1744073817271,0.26481,79302.0,79301.0,0.002]
[1744073817475,0.43211038,79302.0,79301.0,0.002]
[1744073820723,1.18391038,79302.0,79301.0,0.002]
[1744073820921,0.63935685,79300.0,79299.0,0.0003364]
[1744073821112,0.27944985,79272.0,79255.0,0.0473]
[1744073821320,1.55951855,79272.0,79249.0,0.264986]
[1744073821593,1.55951855,79272.0,79247.0,0.059918]
[1744073821594,2.0577309,79272.0,79247.0,0.0473]
[1744073821799,0.262617,79252.0,79245.0,0.0003362]
[1744073822014,1.59702707,79252.0,79245.0,0.0003362]
[1744073822158,0.012621,79230.0,79223.0,0.0472]
[1744073822362,0.16309092,79229.0,79226.0,0.012622]
[1744073822785,0.16309092,79229.0,79227.0,0.252439]
[1744073822960,0.16309092,79229.0,79228.0,0.012621]
[1744073823559,0.18627549,79229.0,79228.0,0.012621]
[1744073824231,0.15152,79229.0,79226.0,0.012622]
[1744073824375,0.15152,79229.0,79228.0,0.012621]
[1744073824774,0.15152,79229.0,79223.0,0.059822]
[1744073824971,0.15152,79229.0,79224.0,0.282446]
[1744073825176,0.15152,79229.0,79224.0,0.03]
[1744073825500,0.012622,79225.0,79224.0,0.03]
[1744073825700,0.2920107,79225.0,79224.0,0.03]
[1744073825880,0.29392955,79225.0,79224.0,0.03]
[1744073826083,0.30655155,79225.0,79224.0,0.03]
[1744073826784,0.01454085,79224.0,79221.0,0.0003362]
[1744073826996,0.36716285,79222.0,79221.0,0.0003362]
[1744073827257,0.90835155,79222.0,79221.0,0.0003362]
[1744073828554,1.05991155,79222.0,79221.0,0.0003362]
[1744073828749,0.89572955,79222.0,79221.0,0.0129582]
[1744073828974,1.04728955,79222.0,79221.0,0.0003362]
[1744073829217,0.56336,79222.0,79221.0,0.0129582]
[1744073829418,0.56336,79222.0,79221.0,0.02018442]
[1744073830592,0.56336,79222.0,79221.0,0.00756242]
[1744073831047,0.82911867,79222.0,79221.0,0.0003362]
[1744073831249,1.31911867,79222.0,79221.0,0.0003362]
[1744073836406,1.34219899,79222.0,79221.0,0.0003362]
[1744073836608,1.34219899,79222.0,79179.0,8e-05]
[1744073836609,0.265174,79193.0,79179.0,8e-05]
[1744073836849,0.012629,79182.0,79179.0,8e-05]
[1744073837464,0.03570932,79182.0,79179.0,8e-05]
[1744073837624,0.04724527,79182.0,79179.0,8e-05]
[1744073837819,0.13206297,79182.0,79179.0,8e-05]
[1744073838029,0.04724527,79182.0,79179.0,8e-05]
[1744073838238,0.34117482,79182.0,79179.0,8e-05]
[1744073838847,0.68117482,79182.0,79179.0,8e-05]
[1744073839180,0.71601634,79182.0,79179.0,8e-05]
[1744073839379,0.84542179,79182.0,79179.0,8e-05]
[1744073840121,0.68117482,79182.0,79179.0,8e-05]
[1744073840301,0.71601634,79182.0,79179.0,8e-05]
[1744073840664,1.12781634,79182.0,79179.0,8e-05]
[1744073841569,0.352629,79180.0,79179.0,8e-05]
[1744073841908,0.63392955,79180.0,79179.0,8e-05]
[1744073842049,0.49481822,79182.0,79181.0,0.012629]
[1744073842050,0.08301822,79182.0,79181.0,0.012629]
[1744073842252,0.18629627,79182.0,79181.0,0.02049629]
[1744073842705,0.03461627,79182.0,79181.0,0.02049629]
[1744073842899,0.18629627,79182.0,79181.0,0.00786729]
[1744073843131,0.19892527,79182.0,79181.0,0.00786729]
[1744073843342,0.012629,79180.0,79179.0,8e-05]
[1744073843711,0.04724527,79180.0,79179.0,8e-05]
[1744073843913,0.03461627,79180.0,79179.0,8e-05]
[1744073844325,0.04724527,79180.0,79179.0,0.00808932]
[1744073844523,0.34117482,79180.0,79179.0,8e-05]
[1744073844955,0.68117482,79180.0,79179.0,8e-05]
[1744073845645,0.76978785,79171.0,79170.0,0.00030069]
[1744073845827,1.31097655,79171.0,79170.0,0.00030069]
[1744073846031,1.48577687,79171.0,79170.0,0.00030069]
[1744073846241,0.93923032,79171.0,79170.0,0.00030069]
[1744073846446,1.18213238,79171.0,79170.0,0.00030069]
[1744073846644,1.28213238,79171.0,79170.0,0.00030069]
[1744073846870,1.19469582,79171.0,79170.0,0.00030069]
[1744073847360,1.19469582,79171.0,79160.0,0.0003368]
[1744073847361,0.415281,79161.0,79160.0,0.0003368]
[1744073847542,1.58337087,79161.0,79160.0,0.0003368]
[1744073848440,1.59490682,79161.0,79160.0,0.0003368]
[1744073849892,1.33741627,79161.0,79160.0,0.0003368]
[1744073850030,1.35004827,79161.0,79160.0,0.0003368]
[1744073850668,1.72338327,79161.0,79160.0,0.0003368]
[1744073851075,1.59397782,79161.0,79160.0,0.0003368]
[1744073851656,1.44397782,79161.0,79160.0,0.0003368]
[1744073851882,1.93397782,79161.0,79160.0,0.0003368]
[1744073853509,2.34577782,79161.0,79160.0,0.0003368]
[1744073855451,2.09577782,79161.0,79160.0,0.0003368]
[1744073855665,2.08123697,79161.0,79160.0,0.0003368]
[1744073855857,2.09577782,79161.0,79160.0,0.0003368]
[1744073856060,2.08123697,79161.0,79160.0,0.0003368]
[1744073856259,1.80012827,79161.0,79160.0,0.0003368]
[1744073856409,1.95548827,79161.0,79160.0,0.0003368]
[1744073856602,1.61548827,79161.0,79160.0,0.0003368]
[1744073856860,1.44749627,79161.0,79160.0,0.0129688]
[1744073857036,1.60285627,79161.0,79160.0,0.3148208]
[1744073857370,1.60285627,79161.0,79160.0,0.32039638]
[1744073857734,1.60285627,79161.0,79160.0,0.05511238]
[1744073857936,1.99754272,79161.0,79160.0,0.00591238]
[1744073858200,2.14147227,79161.0,79160.0,0.0003368]
[1744073858374,2.45206682,79161.0,79160.0,0.0003368]
[1744073858981,2.40631383,79161.0,79160.0,0.0003368]
[1744073859951,2.45480318,79161.0,79160.0,8e-07]
[1744073860579,0.515311,79152.0,79151.0,0.002]
[1744073860777,0.65924055,79152.0,79151.0,0.002]
[1744073861380,0.55924055,79152.0,79151.0,0.002]
[1744073861915,0.65924055,79152.0,79151.0,0.002]
[1744073862212,1.05950383,79152.0,79151.0,0.002]
[1744073863459,0.265325,79148.0,79147.0,1e-06]
[1744073863663,0.27992885,79129.0,79128.0,0.000337]
[1744073863879,1.30088955,79129.0,79128.0,0.000337]
[1744073864035,1.56627755,79129.0,79128.0,0.000337]
[1744073864238,1.15696,79129.0,79128.0,0.253092]
[1744073864421,1.15696,79129.0,79128.0,0.27320259]
[1744073864632,0.15536,79129.0,79128.0,0.27320259]
[1744073865035,0.15536,79129.0,79128.0,0.00781059]
[1744073865233,0.56467755,79129.0,79128.0,0.00781059]
[1744073865440,0.56467755,79129.0,79128.0,0.000337]
[1744073867244,0.694083,79129.0,79128.0,0.000337]
[1744073867484,0.56467755,79129.0,79128.0,0.000337]
[1744073868501,0.1,79127.0,79119.0,1e-08]
[1744073868722,0.265418,79121.0,79119.0,1e-08]
[1744073869098,0.25278,79121.0,79119.0,1e-08]
[1744073869639,0.012639,79120.0,79119.0,1e-08]
[1744073869844,0.15656855,79120.0,79119.0,1e-08]
[1744073870128,0.22657201,79120.0,79119.0,1e-08]
[1744073870279,0.15656855,79120.0,79119.0,1e-08]
[1744073870679,0.252831,79105.0,79103.0,0.0456]
[1744073870907,0.1554,79108.0,79104.0,0.00520159]
[1744073871110,0.02333643,79107.0,79104.0,0.01784259]
[1744073871311,0.02333643,79107.0,79106.0,0.012641]
[1744073871514,0.02333643,79107.0,79104.0,0.00520159]
[1744073871854,0.265469,79105.0,79104.0,0.00520159]
[1744073872010,0.02333643,79106.0,79101.0,0.0003366]
[1744073872213,0.02333643,79106.0,79105.0,0.012641]
[1744073872447,0.1554,79108.0,79105.0,0.27066295]
[1744073872601,0.1554,79108.0,79105.0,0.00519495]
[1744073873174,0.1554,79108.0,79107.0,0.012641]
[1744073873386,0.16706823,79108.0,79107.0,0.012641]
[1744073873917,0.19041111,79108.0,79107.0,0.012641]
[1744073874453,0.19041111,79108.0,79107.0,0.00339352]
[1744073874653,0.19041111,79108.0,79107.0,0.265463]
[1744073874850,0.19041111,79108.0,79107.0,0.27071445]
[1744073875253,0.16706823,79108.0,79107.0,0.27071445]
[1744073875453,0.16706823,79108.0,79107.0,0.01789245]
[1744073875661,0.16706823,79108.0,79107.0,0.00525145]
[1744073876189,0.1904235,79108.0,79107.0,0.01789245]
[1744073877346,0.0350235,79108.0,79107.0,0.06489245]
[1744073877552,0.0350235,79108.0,79107.0,0.01789245]
[1744073877830,0.0476635,79108.0,79107.0,0.00525145]
[1744073878026,0.265479,79102.0,79100.0,0.00056075]
[1744073878225,0.252913,79079.0,79072.0,0.265578]
[1744073878454,0.252913,79079.0,79066.0,0.252951]
[1744073878455,0.012645,79079.0,79073.0,0.00547315]
[1744073878842,0.252921,79076.0,79073.0,0.00547315]
[1744073879015,0.012645,79077.0,79073.0,0.00547315]
[1744073879220,0.01166823,79075.0,79059.0,0.012648]
[1744073879392,0.01166823,79075.0,79027.0,0.13152052]
[1744073879393,0.01166823,79075.0,79074.0,0.00546651]
[1744073879557,0.01166823,79075.0,79074.0,0.265573]
[1744073879757,0.0350235,79075.0,79074.0,0.27103951]
[1744073880215,0.0350235,79075.0,79074.0,0.40042821]
[1744073881991,0.0350235,79075.0,79074.0,0.27103951]
[1744073884400,0.0350235,79075.0,79074.0,0.40042821]
[1744073885251,0.0350235,79075.0,79074.0,0.27103951]
[1744073886770,0.0476695,79075.0,79074.0,0.00546651]
[1744073887176,0.012646,79072.0,79066.0,0.252953]
[1744073887348,0.012646,79072.0,79060.0,0.252971]
[1744073887349,0.252946,79068.0,79060.0,0.252971]
[1744073887526,0.426511,79069.0,79067.0,0.00557225]
[1744073887734,0.426511,79069.0,79062.0,0.252966]
[1744073888064,0.16092,79069.0,79065.0,0.012647]
[1744073888290,0.16092,79069.0,79068.0,0.265593]
[1744073888753,0.18421957,79069.0,79068.0,0.27115861]
[1744073888964,0.18421957,79069.0,79068.0,0.01821261]
[1744073889481,0.2085177,79069.0,79068.0,0.00556561]
[1744073889721,0.012647,79067.0,79060.0,0.012648]
[1744073889901,0.1958707,79069.0,79064.0,0.012647]
[1744073890133,0.1958707,79069.0,79064.0,0.265606]
[1744073890271,0.3749507,79068.0,79064.0,0.252959]
[1744073890469,0.3749507,79068.0,79066.0,0.012647]
[1744073890671,0.0349507,79068.0,79067.0,0.01605651]
[1744073891476,0.0349507,79068.0,79067.0,0.00340951]
[1744073891688,0.0349507,79068.0,79067.0,0.01605651]
[1744073893269,0.01165113,79068.0,79067.0,0.01605651]
[1744073893478,0.01165113,79068.0,79067.0,0.00340951]
[1744073893688,0.01165113,79068.0,79066.0,0.265599]
[1744073893896,0.01165113,79068.0,79067.0,0.01821925]
[1744073894124,0.01165113,79068.0,79067.0,0.00557225]
[1744073894804,0.01165113,79068.0,79067.0,0.01821925]
[1744073895237,0.01165113,79068.0,79067.0,0.00557225]
[1744073895585,0.04408844,79068.0,79067.0,0.00557225]
[1744073895782,0.05862929,79068.0,79067.0,0.00557225]
[1744073895989,0.265614,79062.0,79061.0,0.002]
[1744073896559,0.28892241,79062.0,79061.0,0.002]
[1744073896764,0.30057354,79062.0,79061.0,0.002]
[1744073897118,0.265624,79059.0,79054.0,0.265639]
[1744073897356,0.30057354,79062.0,79055.0,0.00568925]
[1744073897527,0.30057354,79062.0,79060.0,0.012648]
[1744073897528,0.03495954,79062.0,79060.0,0.012648]
[1744073897735,0.02330841,79061.0,79058.0,0.265624]
[1744073897948,0.02330841,79061.0,79059.0,0.012648]
[1744073898082,0.252924,79076.0,79064.0,0.012647]
[1744073898281,0.252922,79076.0,79068.0,0.012647]
[1744073898535,0.252922,79076.0,79063.0,0.012648]
[1744073898536,0.19092322,79069.0,79063.0,0.012648]
[1744073898702,0.0233124,79068.0,79064.0,0.265606]
[1744073899063,0.0233124,79067.0,79064.0,0.265606]